bitfinex/quotes_BTCUSD_20250523
["timestamp","ask_amount","ask_price","bid_price","bid_amount"]
[1748001480261,0.29117651,109110.0,109100.0,0.42151194]
[1748001480262,0.29217651,109110.0,109100.0,0.42151194]
[1748001480477,0.29217651,109110.0,109100.0,0.01447132]
[1748001480686,0.29217651,109110.0,109050.0,0.19257203]
[1748001480687,0.00916876,109060.0,109050.0,0.19257203]
[1748001480896,0.20172339,109060.0,109050.0,1.12527572]
[1748001481113,0.20172339,109060.0,109050.0,0.00050885]
[1748001481355,0.29126895,109060.0,109050.0,0.00050885]
[1748001481573,0.29126895,109060.0,109050.0,0.00889798]
[1748001482014,0.33873567,109060.0,109050.0,0.00889798]
[1748001482235,0.29126895,109060.0,109050.0,0.00889798]
[1748001482454,0.29126895,109060.0,109050.0,0.00050885]
[1748001483312,0.32366895,109060.0,109050.0,0.00450885]
[1748001483521,0.44767266,109060.0,109050.0,0.00450885]
[1748001483728,0.42836594,109060.0,109050.0,0.00050885]
[1748001483979,0.35506895,109060.0,109050.0,0.00050885]
[1748001484184,0.35506895,109060.0,109050.0,0.00150885]
[1748001484185,0.32666895,109060.0,109050.0,0.00150885]
[1748001484820,0.29526895,109060.0,109050.0,0.00150885]
[1748001485031,0.29526895,109060.0,109050.0,0.00989833]
[1748001485489,0.34104811,109060.0,109050.0,0.00989833]
[1748001485695,0.39956594,109060.0,109050.0,0.00989833]
[1748001485931,0.35766895,109060.0,109050.0,0.00150885]
[1748001486153,0.0637,109030.0,109020.0,0.06626697]
[1748001486360,0.0637,109030.0,109020.0,0.06569684]
[1748001486361,0.25800477,109030.0,109020.0,0.06569684]
[1748001486588,0.26215292,109030.0,109020.0,0.06569684]
[1748001486803,0.26215292,109030.0,109020.0,0.07408517]
[1748001487020,0.26115292,109030.0,109020.0,0.07408517]
[1748001487900,0.26915292,109030.0,109020.0,0.07508517]
[1748001488320,0.30095292,109030.0,109020.0,0.07508517]
[1748001488751,0.26915292,109030.0,109020.0,0.41508517]
[1748001488955,0.26915292,109030.0,109020.0,0.07508517]
[1748001489175,0.26915292,109030.0,109020.0,0.47295989]
[1748001489384,0.26115292,109030.0,109020.0,0.07408517]
[1748001489599,0.27032445,109030.0,109020.0,1.12670989]
[1748001489819,0.26715292,109030.0,109020.0,0.07508517]
[1748001490024,0.38092726,109030.0,109020.0,0.07508517]
[1748001490228,0.37492726,109030.0,109020.0,0.06569684]
[1748001490464,0.32955292,109030.0,109020.0,0.06569684]
[1748001490668,0.32955292,109030.0,109020.0,0.06669684]
[1748001490874,0.29905292,109030.0,109020.0,0.06669684]
[1748001491095,0.29905292,109030.0,109020.0,0.06569684]
[1748001491316,0.32655292,109030.0,109020.0,0.06569684]
[1748001491526,0.29405292,109030.0,109020.0,0.06569684]
[1748001491800,0.26115292,109030.0,109020.0,0.06569684]
[1748001492008,0.10788853,109030.0,109020.0,1.5335877]
[1748001492215,0.10788853,109030.0,109020.0,0.59225754]
[1748001492216,0.11706023,109030.0,109020.0,0.59225754]
[1748001492429,0.29132446,109030.0,109020.0,1.37178727]
[1748001492638,0.29132446,109030.0,109020.0,0.87301727]
[1748001492639,0.1987789,109030.0,109020.0,0.87301727]
[1748001492861,0.28832446,109030.0,109020.0,0.47514255]
[1748001493101,0.31142446,109030.0,109020.0,0.07414255]
[1748001493325,0.28132446,109030.0,109020.0,0.47201727]
[1748001493551,0.28132446,109030.0,109020.0,0.41514255]
[1748001493552,0.28632446,109030.0,109020.0,0.41514255]
[1748001493775,0.28632446,109030.0,109020.0,0.97401627]
[1748001494002,0.08954556,109030.0,109020.0,1.2144857]
[1748001494211,0.01833474,109080.0,109070.0,0.00916808]
[1748001494435,0.18441711,109110.0,109090.0,0.00916674]
[1748001494659,0.17763486,109090.0,109080.0,0.0305]
[1748001494875,0.19251907,109080.0,109070.0,0.00015353]
[1748001495087,0.19251907,109080.0,109070.0,0.08969909]
[1748001495292,0.19251907,109080.0,109070.0,0.39802825]
[1748001495514,0.28206463,109080.0,109070.0,0.00015353]
[1748001496597,0.28206429,109080.0,109070.0,0.39802825]
[1748001496810,0.30039929,109080.0,109070.0,1.22925897]
[1748001497146,0.00916632,109090.0,109080.0,0.55084102]
[1748001497400,0.19346589,109110.0,109100.0,0.19248386]
[1748001497609,0.21179517,109110.0,109100.0,0.96365858]
[1748001497820,0.21179584,109110.0,109100.0,1.36365858]
[1748001498026,0.19346631,109110.0,109100.0,1.33515872]
[1748001498231,0.18430125,109110.0,109100.0,1.12976795]
[1748001498407,0.211796,109110.0,109100.0,1.55894267]
[1748001498664,0.21179567,109110.0,109100.0,1.37562462]
[1748001498880,0.001,109110.0,109100.0,1.58643935]
[1748001499093,0.001,109110.0,109100.0,1.61313935]
[1748001499308,0.18331677,109160.0,109140.0,0.19241332]
[1748001499522,0.27286233,109160.0,109140.0,0.19241324]
[1748001499736,0.0274861,109140.0,109130.0,0.22333095]
[1748001499950,0.00916128,109150.0,109140.0,0.21073714]
[1748001500181,0.2107379,109140.0,109120.0,0.22543943]
[1748001500400,0.2107379,109140.0,109100.0,0.41]
[1748001500401,0.00916506,109110.0,109100.0,0.41]
[1748001500615,0.19246631,109110.0,109100.0,0.67058256]
[1748001500829,0.19246631,109110.0,109100.0,1.04438781]
[1748001501045,0.00916455,109110.0,109100.0,1.19585674]
[1748001501292,0.01833793,109060.0,109050.0,0.01432]
[1748001501513,0.20172322,109060.0,109050.0,0.01]
[1748001501725,0.20172322,109060.0,109040.0,0.3]
[1748001501726,0.19260745,109030.0,109020.0,0.46457156]
[1748001501941,0.1834195,109040.0,109020.0,0.81524388]
[1748001502168,0.01294049,109040.0,109030.0,0.427371]
[1748001502369,0.20993107,109040.0,109030.0,0.91691656]
[1748001502587,0.20993107,109040.0,109030.0,1.31479128]
[1748001502801,0.20091222,109040.0,109030.0,1.31479128]
[1748001503018,0.20091205,109040.0,109030.0,1.65479128]
[1748001503233,0.20191272,109040.0,109030.0,1.65479128]
[1748001503498,0.20191272,109040.0,109030.0,0.763507]
[1748001503714,0.20091272,109040.0,109030.0,1.16138172]
[1748001503923,0.20091272,109040.0,109030.0,1.69330125]
[1748001503924,0.17738917,109040.0,109030.0,1.69330125]
[1748001504129,0.21607159,109040.0,109030.0,1.5098655]
[1748001504344,0.20690132,109040.0,109030.0,1.5098655]
[1748001504556,0.20690149,109040.0,109030.0,1.5098655]
[1748001504773,0.18557143,109040.0,109030.0,1.59941106]
[1748001504985,0.20391272,109040.0,109030.0,1.2800815]
[1748001505166,0.20391272,109040.0,109030.0,1.51326022]
[1748001505167,0.00215251,109040.0,109030.0,1.51326022]
[1748001505413,0.01132269,109040.0,109030.0,1.60280578]
[1748001505628,0.00215251,109040.0,109030.0,1.60349328]
[1748001505850,0.00215251,109040.0,109030.0,1.71216937]
[1748001506337,0.00215251,109040.0,109030.0,1.74409818]
[1748001506572,0.20171838,109070.0,109060.0,0.39787472]
[1748001506788,0.02750383,109070.0,109060.0,1.79279121]
[1748001507006,0.03314706,109070.0,109060.0,0.21493694]
[1748001507226,0.01833575,109070.0,109060.0,1.20536613]
[1748001507665,0.21583551,109070.0,109060.0,1.1639729]
[1748001507889,0.07329699,109090.0,109070.0,0.53253672]
[1748001508106,0.25665863,109110.0,109090.0,0.56000013]
[1748001508324,0.25665863,109110.0,109090.0,0.53250143]
[1748001508325,0.2108149,109100.0,109090.0,0.53250143]
[1748001508580,0.20164951,109100.0,109090.0,0.34]
[1748001508803,0.02750374,109070.0,109060.0,0.40150894]
[1748001509042,0.20170489,109070.0,109060.0,0.00150894]
[1748001509259,0.20170489,109070.0,109060.0,0.00050894]
[1748001509489,0.23310489,109070.0,109060.0,0.00050894]
[1748001509947,0.39594744,109070.0,109060.0,0.00900838]
[1748001510157,0.32165045,109070.0,109060.0,0.00900838]
[1748001510374,0.42734744,109070.0,109060.0,0.00900838]
[1748001511050,0.42734744,109070.0,109060.0,0.00050894]
[1748001511777,0.20076021,109040.0,109030.0,0.001]
[1748001512024,0.32350577,109040.0,109030.0,0.001]
[1748001512260,0.32350577,109040.0,109030.0,0.009503]
[1748001512725,0.32250577,109040.0,109030.0,0.009503]
[1748001513379,0.32250577,109040.0,109020.0,0.02519984]
[1748001513380,0.22420736,109030.0,109020.0,0.02519984]
[1748001513602,0.31375292,109030.0,109020.0,0.02519984]
[1748001514529,0.46886709,109030.0,109020.0,0.02519984]
[1748001514742,0.4693795,109030.0,109020.0,0.02519984]
[1748001515003,0.41886232,109030.0,109020.0,0.02519984]
[1748001515208,0.41886232,109030.0,109020.0,0.02619984]
[1748001515209,0.35256533,109030.0,109020.0,0.02619984]
[1748001515838,0.32126533,109030.0,109020.0,0.02619984]
[1748001516048,0.29783686,109030.0,109020.0,0.36619984]
[1748001516259,0.12457206,109030.0,109020.0,0.97504441]
[1748001516515,0.22763378,109030.0,109020.0,0.76407456]
[1748001516728,0.22763378,109030.0,109020.0,0.36619984]
[1748001516729,0.20929147,109030.0,109020.0,0.36619984]
[1748001517149,0.20929147,109030.0,109020.0,0.76407456]
[1748001517332,0.29883703,109030.0,109020.0,0.36619984]
[1748001517592,0.29883703,109030.0,109020.0,0.37537246]
[1748001517809,0.19262503,109020.0,109010.0,0.199]
[1748001518447,0.25582503,109020.0,109010.0,0.199]
[1748001518667,0.34537059,109020.0,109010.0,0.199]
[1748001519340,0.31497059,109020.0,109010.0,0.199]
[1748001519550,0.31497059,109020.0,109010.0,0.10622]
[1748001519758,0.2548427,109010.0,109000.0,0.257693]
[1748001519971,0.2538427,109010.0,109000.0,0.257693]
[1748001520620,0.31258826,109010.0,109000.0,0.257693]
[1748001520827,0.28118826,109010.0,109000.0,0.257693]
[1748001521923,0.34228826,109010.0,109000.0,0.257693]
[1748001522140,0.42958372,109010.0,109000.0,0.257693]
[1748001522351,0.45458372,109010.0,109000.0,0.257693]
[1748001522566,0.41958525,109010.0,109000.0,0.257693]
[1748001522834,0.34128826,109010.0,109000.0,0.257693]
[1748001523049,0.34828826,109010.0,109000.0,0.258693]
[1748001524344,0.41458525,109010.0,109000.0,0.257693]
[1748001524560,0.34628826,109010.0,109000.0,0.257693]
[1748001524765,0.35128826,109010.0,109000.0,0.257693]
[1748001525402,0.40476234,109010.0,109000.0,0.257693]
[1748001525627,0.35128826,109010.0,109000.0,0.257693]
[1748001526049,0.32128826,109010.0,109000.0,0.257693]
[1748001526268,0.29018826,109010.0,109000.0,0.257693]
[1748001526907,0.32228826,109010.0,109000.0,0.257693]
[1748001527132,0.29018826,109010.0,109000.0,0.257693]
[1748001527814,0.09954556,109010.0,109000.0,0.85740214]
[1748001528053,0.09954556,109010.0,109000.0,0.257693]
[1748001528054,0.22098904,109010.0,109000.0,0.257693]
[1748001528274,0.30136164,109010.0,109000.0,0.257693]
[1748001528485,0.30136164,109010.0,109000.0,0.26616926]
[1748001529306,0.29136164,109010.0,109000.0,0.26616926]
[1748001529974,0.29136164,109010.0,109000.0,0.44965549]
[1748001530186,0.29136164,109010.0,109000.0,0.26616926]
[1748001530401,0.29136164,109010.0,109000.0,0.257693]
[1748001530826,0.29936164,109010.0,109000.0,0.257693]
[1748001532735,0.29936164,109010.0,109000.0,0.65556772]
[1748001532943,0.29936164,109010.0,109000.0,0.257693]
[1748001535134,0.29936164,109010.0,109000.0,0.2662041]
[1748001535334,0.37265863,109010.0,109000.0,0.2662041]
[1748001536221,0.9035445,109010.0,109000.0,0.2662041]
[1748001536425,0.50566978,109010.0,109000.0,0.2662041]
[1748001536640,0.43237279,109010.0,109000.0,0.2662041]
[1748001536857,0.9035445,109010.0,109000.0,0.2662041]
[1748001536989,0.8955445,109010.0,109000.0,0.2662041]
[1748001537395,0.9055445,109010.0,109000.0,0.2662041]
[1748001537801,0.9055445,109010.0,109000.0,0.257693]
[1748001538091,0.9155445,109010.0,109000.0,0.257693]
[1748001538504,0.51766978,109010.0,109000.0,0.257693]
[1748001538654,0.9155445,109010.0,109000.0,0.257693]
[1748001538859,0.44437279,109010.0,109000.0,0.257693]
[1748001539060,0.84224751,109010.0,109000.0,0.257693]
[1748001539236,0.19276648,108940.0,108930.0,0.02565234]
[1748001539458,0.28231204,108940.0,108930.0,0.05775234]
[1748001539717,0.28231204,108940.0,108930.0,0.08062757]
[1748001540133,0.28231204,108940.0,108930.0,0.38352757]
[1748001540265,0.32890178,108940.0,108930.0,0.02918783]
[1748001540475,0.32990178,108940.0,108930.0,0.03018783]
[1748001540678,0.31472381,108940.0,108930.0,0.03018783]
[1748001541258,0.71159853,108940.0,108930.0,0.02918783]
[1748001541455,0.71159853,108940.0,108920.0,0.00791805]
[1748001541456,0.25568417,108930.0,108920.0,0.00791805]
[1748001541662,0.31322973,108930.0,108920.0,0.00791805]
[1748001541843,0.34402973,108930.0,108920.0,0.00791805]
[1748001542076,0.31322973,108930.0,108920.0,0.00791805]
[1748001542318,0.28232973,108930.0,108920.0,0.00791805]
[1748001543122,0.36002973,108930.0,108920.0,0.00791805]
[1748001543324,0.28517829,108910.0,108900.0,0.07]
[1748001543874,0.37422385,108910.0,108900.0,0.07]
[1748001544075,0.40562385,108910.0,108900.0,0.07]
[1748001544306,0.50392084,108910.0,108900.0,0.07]
[1748001544533,0.36422385,108910.0,108900.0,0.05]
[1748001544737,0.35422385,108910.0,108900.0,0.05]
[1748001544937,0.36022385,108910.0,108900.0,0.05]
[1748001545414,0.36002385,108910.0,108900.0,0.05]
[1748001545619,0.32872385,108910.0,108900.0,0.05]
[1748001546521,0.36072385,108910.0,108900.0,0.05]
[1748001546720,0.35422385,108910.0,108900.0,0.05]
[1748001546934,0.36122385,108910.0,108900.0,0.05]
[1748001547150,0.41752084,108910.0,108900.0,0.05]
[1748001547570,0.81139556,108910.0,108900.0,0.0125]
[1748001547770,0.92101707,108910.0,108900.0,0.0125]
[1748001547974,0.49504536,108910.0,108900.0,0.0125]
[1748001548185,0.39552385,108910.0,108900.0,0.0125]
[1748001548384,0.46882084,108910.0,108900.0,0.0125]
[1748001548593,0.39552385,108910.0,108900.0,0.0125]
[1748001548793,0.47882084,108910.0,108900.0,0.0125]
[1748001548995,0.94394116,108910.0,108900.0,0.0125]
[1748001549199,0.94694116,108910.0,108900.0,0.0125]
[1748001549400,0.94694116,108910.0,108890.0,0.00236135]
[1748001549401,0.605712,108900.0,108890.0,0.00236135]
[1748001549604,0.68525756,108900.0,108890.0,0.00236135]
[1748001549803,1.03095756,108900.0,108890.0,0.00236135]
[1748001549922,1.12047907,108900.0,108890.0,0.00236135]
[1748001550122,0.82047907,108900.0,108890.0,0.00236135]
[1748001550325,0.82047907,108900.0,108830.0,0.06891724]
[1748001550326,0.61000568,108840.0,108830.0,0.06891724]
[1748001550556,0.76755124,108840.0,108830.0,0.06891724]
[1748001550756,0.32447652,108840.0,108830.0,0.06891724]
[1748001551751,0.32498766,108840.0,108830.0,0.06891724]
[1748001551992,0.32998766,108840.0,108830.0,0.06891724]
[1748001552213,0.32998766,108840.0,108830.0,0.06391724]
[1748001552427,0.32998766,108840.0,108780.0,0.39787472]
[1748001552428,0.00919185,108790.0,108780.0,0.39787472]
[1748001552636,0.00919109,108800.0,108780.0,0.38257771]
[1748001552842,0.19297922,108820.0,108810.0,0.19299687]
[1748001553077,0.20214928,108830.0,108820.0,0.20216811]
[1748001553435,0.19292604,108850.0,108840.0,0.20213096]
[1748001553436,0.09444677,108840.0,108830.0,0.19296123]
[1748001553608,0.18425023,108850.0,108830.0,0.57237332]
[1748001553832,0.21133716,108830.0,108820.0,0.40631215]
[1748001554052,0.20214962,108830.0,108820.0,0.12758643]
[1748001554312,0.20214962,108830.0,108820.0,0.00843743]
[1748001554483,0.20220561,108800.0,108790.0,0.39787472]
[1748001554711,0.20222386,108790.0,108780.0,0.39887472]
[1748001554966,0.29176942,108790.0,108780.0,0.001]
[1748001555169,0.29176942,108790.0,108780.0,0.40730587]
[1748001555313,0.29176942,108790.0,108780.0,0.43750587]
[1748001555521,0.09873614,108800.0,108790.0,0.02757529]
[1748001555724,0.01837939,108810.0,108800.0,0.28118643]
[1748001555953,0.00918898,108820.0,108810.0,0.2113766]
[1748001556157,0.18377285,108830.0,108820.0,0.0317]
[1748001556410,0.19297905,108820.0,108810.0,0.00015251]
[1748001556625,0.28252461,108820.0,108810.0,0.39802723]
[1748001556864,0.29171401,108820.0,108810.0,0.61493386]
[1748001557077,0.00918872,108820.0,108810.0,1.37773283]
[1748001557277,0.0183766,108830.0,108820.0,0.22607914]
[1748001557494,0.00918796,108830.0,108820.0,0.65152112]
[1748001557699,0.22052596,108830.0,108820.0,0.31026]
[1748001557905,0.20216811,108820.0,108810.0,0.00015251]
[1748001558134,0.29171367,108820.0,108810.0,0.00015251]
[1748001558355,0.25705618,108840.0,108820.0,0.21134262]
[1748001558570,0.08954556,108840.0,108830.0,1.19626947]
[1748001558787,0.00918484,108870.0,108860.0,0.21127951]
[1748001559005,0.07949888,108870.0,108860.0,1.58073358]
[1748001559225,0.00918197,108900.0,108890.0,0.20203832]
[1748001559473,0.01836993,108870.0,108860.0,0.4]
[1748001559690,0.27537225,108870.0,108860.0,0.51802028]
[1748001559905,0.27537225,108870.0,108860.0,0.42862723]
[1748001560120,0.27537225,108870.0,108860.0,0.00015251]
[1748001560336,0.36491781,108870.0,108860.0,0.13058651]
[1748001560544,0.20207526,108870.0,108860.0,0.59215775]
[1748001560781,0.2020756,108870.0,108860.0,0.13058651]
[1748001560988,0.27537259,108870.0,108860.0,0.00244876]
[1748001561198,0.27537259,108870.0,108860.0,0.00015251]
[1748001561199,0.47372425,108870.0,108860.0,0.00015251]
[1748001561408,0.36491815,108870.0,108860.0,0.00015251]
[1748001561624,0.39661815,108870.0,108860.0,0.00015251]
[1748001561831,0.29162116,108870.0,108860.0,0.00015251]
[1748001562328,0.01837027,108870.0,108860.0,0.00015251]
[1748001562562,0.18121282,108870.0,108860.0,0.00015251]
[1748001562801,0.22161282,108870.0,108860.0,0.00015251]
[1748001563029,0.18921282,108870.0,108860.0,0.00015251]
[1748001563747,0.17084255,108870.0,108860.0,0.00015251]
[1748001563993,0.008,108870.0,108860.0,0.42882723]
[1748001564249,0.008,108870.0,108860.0,0.69336851]
[1748001564465,0.008,108870.0,108860.0,1.03074023]
[1748001565150,0.10397423,108910.0,108860.0,1.03074023]
[1748001565376,0.005,108870.0,108860.0,0.85646723]
[1748001565613,0.005,108870.0,108860.0,1.77123523]
[1748001565862,0.07329699,108890.0,108860.0,1.15136451]
[1748001566111,0.07829699,108870.0,108860.0,0.00015251]
[1748001566333,0.16784255,108870.0,108860.0,0.00015251]
[1748001566561,0.16284255,108870.0,108860.0,0.00015251]
[1748001567027,0.16284255,108870.0,108860.0,0.00025251]
[1748001567884,0.16284255,108870.0,108860.0,0.00876474]
[1748001568114,0.08954556,108870.0,108860.0,0.00876474]
[1748001568811,0.0322,108900.0,108860.0,0.00876474]
[1748001569045,0.10889699,108870.0,108860.0,0.00125251]
[1748001569278,0.19844255,108870.0,108860.0,0.00125251]
[1748001569505,0.16684255,108870.0,108860.0,0.00125251]
[1748001569746,0.19444255,108870.0,108860.0,0.00025251]
[1748001570010,0.16284255,108870.0,108860.0,0.00125251]
[1748001570701,0.08954556,108870.0,108860.0,0.00125251]
[1748001571398,0.08954556,108870.0,108860.0,0.00025251]
[1748001571890,0.09554556,108870.0,108860.0,0.00879003]
[1748001573032,0.09554556,108870.0,108860.0,0.00025251]
[1748001573271,0.13480012,108870.0,108860.0,0.00025251]
[1748001573532,0.12524556,108870.0,108860.0,0.00025251]
[1748001573963,0.09434556,108870.0,108860.0,0.00025251]
[1748001575251,0.09434556,108870.0,108860.0,0.00879806]
[1748001575875,0.09434556,108870.0,108860.0,0.00025251]
[1748001577773,0.006,108870.0,108860.0,1.66827697]
[1748001577981,0.0555384,108910.0,108870.0,0.34]
[1748001578197,0.12862913,108910.0,108900.0,0.39787472]
[1748001578406,0.03908357,108910.0,108900.0,0.4]
[1748001578641,0.12862913,108910.0,108880.0,0.39787472]
[1748001578845,0.08954556,108900.0,108870.0,0.42907472]
[1748001579050,0.08954556,108900.0,108870.0,0.4312]
[1748001579259,0.08954556,108900.0,108880.0,0.39787472]
[1748001579477,0.08954556,108900.0,108880.0,0.39802723]
[1748001579962,0.08954556,108900.0,108880.0,0.00015251]
[1748001580177,0.08954556,108900.0,108890.0,0.39787472]
[1748001580588,0.03067724,108910.0,108890.0,0.39787472]
[1748001580799,0.03067724,108910.0,108900.0,0.39787472]
[1748001580800,0.1202228,108910.0,108900.0,0.39787472]
[1748001581010,0.1202228,108910.0,108890.0,0.39787472]
[1748001581254,0.1202228,108910.0,108900.0,0.39787472]
[1748001581683,0.1222228,108910.0,108900.0,0.39787472]
[1748001581880,0.1222228,108910.0,108880.0,0.03085251]
[1748001582086,0.1222228,108910.0,108900.0,0.39787472]
[1748001582296,0.03067724,108910.0,108900.0,0.39787472]
[1748001582544,0.03067724,108910.0,108880.0,0.03265251]
[1748001582545,0.1202228,108910.0,108880.0,0.06555251]
[1748001582783,0.1202228,108910.0,108890.0,0.39787472]
[1748001583038,0.1252228,108910.0,108900.0,0.39887472]
[1748001583607,0.1556228,108910.0,108900.0,0.001]
[1748001583845,0.1252228,108910.0,108900.0,0.39887472]
[1748001584057,0.03567724,108910.0,108900.0,0.39887472]
[1748001584862,0.03067724,108910.0,108900.0,0.39787472]
[1748001585307,0.03167724,108910.0,108900.0,0.0327]
[1748001585484,0.03167724,108910.0,108900.0,0.39787472]
[1748001585724,0.03067724,108910.0,108900.0,0.697919]
[1748001585919,0.03067724,108910.0,108900.0,0.88219072]
[1748001586123,0.03467724,108910.0,108900.0,0.70804972]
[1748001586354,0.03467724,108910.0,108900.0,0.55754972]
[1748001586569,0.03467724,108910.0,108900.0,0.0339]
[1748001586747,0.03467724,108910.0,108900.0,0.43177472]
[1748001587402,0.03467724,108910.0,108900.0,1.68488572]
[1748001587637,0.03467724,108910.0,108900.0,1.52516072]
[1748001588037,0.03467724,108910.0,108900.0,1.15216772]
[1748001588256,0.03467724,108910.0,108900.0,1.00617372]
[1748001588664,0.03467724,108910.0,108900.0,0.608299]
[1748001588815,0.03467724,108910.0,108900.0,1.00617372]
[1748001589436,0.03467724,108910.0,108900.0,1.12591928]
[1748001589685,0.00840633,108980.0,108950.0,0.39787472]
[1748001589872,0.08954556,108970.0,108960.0,0.31976727]
[1748001590251,0.00840633,108980.0,108960.0,0.66113739]
[1748001590449,0.25511551,109000.0,108970.0,0.31976727]
[1748001590450,0.2,109000.0,108970.0,0.31976727]
[1748001590634,0.2,109000.0,108990.0,0.31976727]
[1748001590992,0.20051209,109000.0,108990.0,0.02224375]
[1748001591194,0.20051209,109000.0,108990.0,0.34201102]
[1748001591799,0.20051209,109000.0,108990.0,0.0011]
[1748001591800,0.29705765,109000.0,108990.0,0.0011]
[1748001592408,0.29005765,109000.0,108990.0,0.0001]
[1748001592899,0.29005765,109000.0,108990.0,0.0011]
[1748001592900,0.32575765,109000.0,108990.0,0.0011]
[1748001593104,0.73556342,109000.0,108990.0,0.0011]
[1748001593282,0.72556342,109000.0,108990.0,0.0011]
[1748001593509,0.70655765,109000.0,108990.0,0.0011]
[1748001593946,0.69655765,109000.0,108990.0,0.0011]
[1748001594149,0.69255765,109000.0,108990.0,0.0001]
[1748001594362,0.70255765,109000.0,108990.0,0.0001]
[1748001594567,0.77731342,109000.0,108990.0,0.0001]
[1748001595032,0.77331342,109000.0,108990.0,0.0001]
[1748001595305,0.70255765,109000.0,108990.0,0.0001]
[1748001595488,0.70955765,109000.0,108990.0,0.0011]
[1748001595691,1.18274328,109000.0,108990.0,0.0011]
[1748001595898,0.87237615,109000.0,108990.0,0.0011]
[1748001596308,0.96893615,109000.0,108990.0,0.0011]
[1748001596510,0.4155,108990.0,108980.0,0.0001]
[1748001596728,0.50504556,108990.0,108980.0,0.0001]
[1748001597157,0.15504556,108990.0,108980.0,0.0001]
[1748001597363,0.11974556,108990.0,108980.0,0.0001]
[1748001597566,0.08954556,108990.0,108980.0,0.0001]
[1748001597777,0.09354556,108990.0,108980.0,0.0001]
[1748001598392,0.08954556,108990.0,108980.0,0.0001]
[1748001598603,0.09554556,108990.0,108980.0,0.0011]
[1748001599012,0.08954556,108990.0,108980.0,0.39998864]
[1748001599421,0.20151209,109000.0,108980.0,0.42074229]
[1748001599622,0.29105765,109000.0,108980.0,0.42074229]
[1748001599822,0.29105765,109000.0,108990.0,0.42064229]
[1748001600030,0.20151209,109000.0,108990.0,0.39988864]
[1748001600243,0.29105765,109000.0,108980.0,0.39998864]
[1748001600490,0.20151209,109000.0,108990.0,1.06977288]
[1748001600700,0.29105765,109000.0,108990.0,1.09000352]
[1748001600925,0.29105765,109000.0,108990.0,0.232024]
[1748001601339,0.29105765,109000.0,108990.0,0.207559]
[1748001601546,0.29105765,109000.0,108990.0,0.285374]
[1748001601751,0.29105765,109000.0,108990.0,0.64067164]
[1748001601881,0.29205765,109000.0,108990.0,0.66319152]
[1748001602086,0.29105765,109000.0,108990.0,0.66319152]
[1748001602289,0.29005765,109000.0,108990.0,0.240783]
[1748001602679,0.20051209,109000.0,108990.0,0.39988864]
[1748001602879,0.20051209,109000.0,108980.0,0.0306]
[1748001603105,0.20051209,109000.0,108990.0,0.98190852]
[1748001603307,0.29005765,109000.0,108990.0,0.54547885]
[1748001603511,0.29005765,109000.0,108980.0,0.0001]
[1748001603734,0.29005765,109000.0,108980.0,6e-05]
[1748001603938,0.29105765,109000.0,108990.0,0.002]
[1748001604362,0.35385765,109000.0,108990.0,0.002]
[1748001604552,0.0627,108990.0,108980.0,6e-05]
[1748001604755,0.22554255,108990.0,108980.0,0.00306]
[1748001605229,0.22554255,108990.0,108970.0,0.0001]
[1748001605230,0.4027,108980.0,108970.0,0.0001]
[1748001605479,0.8871342,108980.0,108970.0,0.0001]
[1748001605636,0.15524556,108980.0,108970.0,0.0001]
[1748001605845,0.15024556,108980.0,108970.0,0.0001]
[1748001606086,0.16024556,108980.0,108970.0,0.0001]
[1748001606295,0.0308,108970.0,108960.0,0.0001]
[1748001606498,0.0357,108960.0,108950.0,0.0001]
[1748001606644,0.69664461,108960.0,108950.0,0.0001]
[1748001606866,0.30675597,108960.0,108950.0,0.0001]
[1748001607206,0.41701257,108960.0,108950.0,0.0001]
[1748001607386,0.70449915,108960.0,108950.0,0.0001]
[1748001607826,0.70501092,108960.0,108950.0,0.0001]
[1748001608270,0.34,108910.0,108900.0,0.0001]
[1748001608475,1.47039206,108910.0,108900.0,0.0001]
[1748001608656,1.47039206,108910.0,108840.0,0.0001]
[1748001608657,0.18370533,108870.0,108840.0,0.0001]
[1748001608881,0.18373909,108850.0,108840.0,0.0001]
[1748001609083,0.27328465,108850.0,108840.0,0.0001]
[1748001609304,0.67808465,108850.0,108840.0,0.0001]
[1748001609546,0.19297905,108820.0,108810.0,0.0001]
[1748001609768,0.28252461,108820.0,108810.0,0.0001]
[1748001609981,0.28252461,108820.0,108810.0,0.01461243]
[1748001610699,0.28252461,108820.0,108810.0,0.00025251]
[1748001611351,0.28352461,108820.0,108810.0,0.00025251]
[1748001612085,0.28352461,108820.0,108750.0,0.53597456]
[1748001612086,0.25618551,108760.0,108750.0,0.53597456]
[1748001612302,0.25618551,108760.0,108750.0,0.33328616]
[1748001612520,0.27219286,108760.0,108750.0,0.03775507]
[1748001612751,0.56818551,108760.0,108750.0,0.03775507]
[1748001612986,0.97307415,108760.0,108750.0,0.03775507]
[1748001613202,0.57080327,108750.0,108740.0,0.06924931]
[1748001613381,0.20735407,108720.0,108710.0,0.13956597]
[1748001613635,0.61815407,108720.0,108710.0,0.13956597]
[1748001613850,0.19817432,108710.0,108700.0,0.06710101]
[1748001614057,0.19317432,108710.0,108700.0,0.06710101]
[1748001614301,0.28271988,108710.0,108700.0,0.06710101]
[1748001614520,0.28771988,108710.0,108700.0,0.06710101]
[1748001614721,0.28271988,108710.0,108700.0,0.06710101]
[1748001614929,0.28287281,108710.0,108700.0,0.06710101]
[1748001615127,0.28387281,108710.0,108700.0,0.06710101]
[1748001615997,0.34537281,108710.0,108700.0,0.06710101]
[1748001616201,0.31457281,108710.0,108700.0,0.06710101]
[1748001616413,0.28387281,108710.0,108700.0,0.06710101]
[1748001616835,0.28287281,108710.0,108700.0,0.06710101]
[1748001617063,0.68617281,108710.0,108700.0,0.06710101]
[1748001617273,0.78469432,108710.0,108700.0,0.06710101]
[1748001617498,0.78469432,108710.0,108700.0,0.06720101]
[1748001617692,0.69117281,108710.0,108700.0,0.06720101]
[1748001617909,1.10106145,108710.0,108700.0,0.06720101]
[1748001618160,0.70717281,108710.0,108700.0,0.00270101]
[1748001618369,0.6141921,108700.0,108670.0,0.015]
[1748001618583,0.83273465,108700.0,108690.0,0.000129]
[1748001618783,0.92225616,108700.0,108690.0,0.000129]
[1748001619200,1.3121448,108700.0,108690.0,0.000129]
[1748001619440,1.34436747,108700.0,108690.0,0.000129]
[1748001619677,0.18406037,108660.0,108650.0,1.99779792]
[1748001619884,0.28280877,108660.0,108650.0,1.99779792]
[1748001620088,0.28280877,108660.0,108650.0,2.0121763]
[1748001620298,0.32949399,108660.0,108650.0,2.0121763]
[1748001620511,0.32949399,108660.0,108650.0,1.99779792]
[1748001620512,0.28280877,108660.0,108650.0,1.99779792]
[1748001621193,0.28296159,108660.0,108650.0,1.99779792]
[1748001621411,0.28396159,108660.0,108650.0,1.99789792]
[1748001621619,0.28396159,108660.0,108650.0,2.39778656]